[Event "Asian Amateur-ch Open 2022"]
[Site "Muscat"]
[Date "2022.10.03"]
[Round "6.2"]
[White "Mahmoody, M. Sadegh"]
[Black "Thapa, Krishna"]
[Result "1-0"]
[ECO "E90"]
[WhiteElo "1914"]
[BlackElo "1928"]
[Annotator "TA"]
[PlyCount "115"]
[EventDate "2022.09.29"]
[EventType "swiss"]
[SourceTitle "playchess.com"]
[Source "ChessBase"]
[SourceQuality "1"]
[TimeControl "5400+30"]

{[%evp 13,115,47,41,41,47,45,47,32,40,38,43,44,46,27,46,6,29,-11,30,35,29,-10,-12,-6,0,0,123,122,115,118,206,184,218,239,221,231,223,106,53,0,127,120,98,37,68,47,105,117,218,98,102,104,97,14,103,14,15,3,3,3,723,461,423,433,443,438,386,313,900,725,1446,1294,1704,1493,2664,5385,29960,11142,29971,29974,29973,29974,29973,29974,29976,29977,29976,29976,29977,29978,29978,29979,29979,29980,29981,29982,29982,29983,29984,29985,29985,29986,29986,29985]} 1. d4 {[%emt 0:00:03]} Nf6 {[%emt 0:00:21]} 2. Nf3 {[%emt 0:00:07]} g6 {[%emt 0:00:07]} 3. c4 {[%emt 0:00:05]} c5 {[%emt 0:00:26]} 4. d5 {[%emt 0:00:09]} d6 {[%emt 0:00:07]} 5. Nc3 {[%emt 0:00:06]} Bg7 {[%emt 0:00:08]} 6. e4 {[%emt 0:00:08]} O-O {[%emt 0:00:06]} 7. Bd3 {[%emt 0:01:03]} Bg4 {[%emt 0:02:30]} 8. h3 {[%emt 0:02:24] E90: King's Indian: Classical: Early deviations and 6 h3.} Bxf3 {[%emt 0:01:08]} 9. Qxf3 {[%emt 0:00:31]} Nbd7 {[%emt 0:00:27]} 10. O-O {[%emt 0:00:42] White is slightly better.} Ne5 {[%emt 0:02:09]} 11. Qd1 {[%emt 0:00:13]} Nxd3 {[%emt 0:00:49]} 12. Qxd3 {[%emt 0:03:08]} a6 {[%emt 0:00:20]} 13. Be3 {[%emt 0:04:18]} Qc7 {[%emt 0:04:05]} 14. f4 {[%emt 0:01:44]} Nd7 {[%emt 0:03:27] [#]} (14... b5 $5) 15. Rf2 $146 {[%emt 0:03:46][%cal Oe4e5]} ({Predecessor:} 15. Rae1 Rab8 16. Rc1 {½-½ (16) Kravchuk,M (1470)-De Winter,E (1804) Reykjavik 2014}) 15... Rab8 {[%emt 0:04:50][%cal Ob7b5]} 16. a4 {[%emt 0:00:48]} Qa5 {[%emt 0:03:00]} 17. Rc2 {[%emt 0:04:48]} (17. e5 $5) 17... b5 {[%emt 0:10:15]} 18. cxb5 {[%emt 0:01:34]} axb5 {[%emt 0:10:08]} 19. Nxb5 {[%emt 0:01:45]} Rfc8 {[%emt 0:02:51]} (19... Nb6 $1 $11) 20. Bd2 $16 {[%emt 0:02:44]} Qa6 {[%emt 0:02:25]} 21. Ra2 {[%emt 0:05:43]} c4 {[%emt 0:08:26]} (21... Nb6 $16) 22. Rxc4 $18 {[%emt 0:05:55]} Rxc4 {[%emt 0:16:17]} 23. Qxc4 {[%emt 0:00:34]} Rc8 {[%emt 0:00:47]} 24. Qd3 {[%emt 0:04:29]} Nc5 {[%emt 0:00:47]} 25. Qe2 {[%emt 0:00:50]} (25. Qc2 $1 $18) 25... Nb3 $16 {[%emt 0:06:39]} 26. Qe3 {[%emt 0:07:49]} (26. Qd1 $14 Nd4 27. Nc3) 26... Nxd2 {[%emt 0:04:44]} (26... Rc2 $1 $11 27. Qxb3 Rxd2) 27. Qxd2 {[%emt 0:01:02]} Rc4 {[%emt 0:01:04] [#]} 28. Nc3 {[%emt 0:08:02]} ({White should play} 28. b3 $1 $16 {[%cal Rb3c4]} Qb6+ 29. Qf2 Qxf2+ 30. Kxf2 (30. Rxf2 Rxe4 31. Rc2 Bf6 $16) 30... Rxe4 31. g3) 28... Qa5 {[%emt 0:09:01][%cal Rg7c3]} 29. Ra3 {[%emt 0:07:57][%cal Ba2a3,Ba3c3,Bc3c8][%mdl 32]} Qc5+ {[%emt 0:05:22]} ({Better is} 29... Bxc3 $14 30. Rxc3 Qxa4) 30. Kh2 {[%emt 0:01:54]} g5 {[%emt 0:00:50]} (30... Qa5 $16 31. Qc2 Qa7) 31. a5 {[%emt 0:03:45]} (31. fxg5 $18 {has better winning chances. aiming for h4.} Qb4 32. Qe2) 31... Bxc3 {[%emt 0:01:46]} 32. Rxc3 {[%emt 0:00:08]} Qxa5 {[%emt 0:00:31][%mdl 4096] Endgame KQR-KQR} 33. f5 {[%emt 0:03:03]} (33. fxg5 $16 {Threatens to win with Qc2.} Qb4 34. Qe2 Rxe4 35. Re3 Rxe3 36. Qxe3) 33... h6 {[%emt 0:00:27]} (33... f6 $11) 34. h4 {[%emt 0:00:12]} (34. Qc2 $16 Rd4 35. f6 exf6 36. Qf2 Rxe4 37. Qxf6) 34... f6 {[%emt 0:00:27]} (34... Qb4 {looks sharper.} 35. hxg5 Rxe4 36. gxh6 Rh4+) 35. hxg5 {[%emt 0:00:07]} hxg5 {[%emt 0:00:09]} 36. Qc2 {[%emt 0:01:41]} Rd4 {[%emt 0:00:56][%mdl 8192] This move loses the game for Black.} (36... Rxc3 $11 37. Qxc3 Qb5) 37. Rc8+ {[%emt 0:00:15]} Kg7 {[%emt 0:00:24] [#] Strongly threatening ...Qe1.} 38. Re8 $1 {[%emt 0:00:09]} Qe1 {[%emt 0:00:37]} 39. Rxe7+ {[%emt 0:01:47]} Kh6 {[%emt 0:00:28]} 40. Qc3 {[%emt 0:00:16]} Qxc3 {[%emt 0:00:37]} (40... Qh4+ 41. Qh3 Rb4) 41. bxc3 $18 {[%emt 0:00:01] KR-KR} Rc4 {[%emt 0:00:01]} 42. g4 {[%emt 0:00:30]} Rxc3 {[%emt 0:00:19]} 43. Re6 {[%emt 0:00:02][%csl LRd6,LRf6]} Re3 {[%emt 0:00:49]} 44. Rxf6+ {[%emt 0:00:11]} Kg7 {[%emt 0:00:02]} 45. Rxd6 {[%emt 0:00:26] Rg6+ would kill now.} Rxe4 {[%emt 0:00:12]} 46. Rg6+ {[%emt 0:00:07] White mates.} Kf7 {[%emt 0:00:13]} 47. Rxg5 {[%emt 0:00:04]} Rd4 {[%emt 0:00:01]} 48. Kg3 {[%emt 0:00:22]} Rxd5 {[%emt 0:00:03]} 49. Rg6 {[%emt 0:00:10]} Ra5 {[%emt 0:00:54]} 50. Kh4 {[%emt 0:00:16]} Rb5 {[%emt 0:00:07]} 51. Kg5 {[%emt 0:00:13]} Ra5 {[%emt 0:00:07]} 52. Rb6 {[%emt 0:00:12]} Ra7 {[%emt 0:00:14]} 53. Rh6 {[%emt 0:00:08]} Ra4 {[%emt 0:00:04]} 54. Rh7+ {[%emt 0:00:08]} Kg8 {[%emt 0:00:01]} 55. Rd7 {[%emt 0:00:08]} Rb4 {[%emt 0:00:09]} 56. f6 {[%emt 0:00:47]} Rc4 {[%emt 0:00:09]} 57. Kf5 {[%emt 0:00:07]} Kf8 {[%emt 0:05:37]} 58. Re7 {[%emt 0:29:54] Weighted Error Value: White=0.34/Black=0.54} 1-0

[Event "Asian Amateur-ch Open 2022"]
[Site "Muscat"]
[Date "2022.10.03"]
[Round "6.3"]
[White "Muhammad Shahzeb"]
[Black "Junaid Sohail"]
[Result "1/2-1/2"]
[ECO "C45"]
[WhiteElo "1992"]
[BlackElo "1981"]
[Annotator "NA RC"]
[PlyCount "171"]
[EventDate "2022.09.29"]
[EventType "swiss"]
[SourceTitle "playchess.com"]
[Source "ChessBase"]
[SourceQuality "1"]
[TimeControl "5400+30"]

1. e4 {[%emt 0:00:04]} e5 {[%emt 0:01:45]} 2. Nf3 {[%emt 0:00:04]} Nc6 {[%emt 0:00:03]} 3. d4 {[%emt 0:00:07]} exd4 {[%emt 0:00:02]} 4. Nxd4 {[%emt 0:00:12]} Nf6 {[%emt 0:00:06]} 5. Nxc6 {[%emt 0:00:05]} bxc6 {[%emt 0:00:14]} 6. e5 {[%emt 0:00:02]} Qe7 {[%emt 0:00:02]} 7. Qe2 {[%emt 0:00:09]} Nd5 {[%emt 0:00:02]} 8. c4 {[%emt 0:00:13]} Ba6 {[%emt 0:00:01]} 9. b3 {[%emt 0:00:38]} g6 {[%emt 0:00:05]} 10. g3 {[%emt 0:00:23]} Bg7 {[%emt 0:00:02]} 11. Bb2 {[%emt 0:00:06]} O-O {[%emt 0:00:37]} 12. Bg2 {[%emt 0:00:04]} Rae8 {[%emt 0:00:05]} 13. O-O {[%emt 0:00:08]} Bxe5 {[%emt 0:00:04]} 14. Qxe5 {[%emt 0:00:10]} Qxe5 {[%emt 0:00:22]} 15. Bxe5 {[%emt 0:00:03]} Rxe5 {[%emt 0:03:08]} 16. cxd5 {[%emt 0:00:05]} Bxf1 {[%emt 0:00:03]} 17. Kxf1 {[%emt 0:00:03]} cxd5 {[%emt 0:00:01]} 18. Nc3 {[%emt 0:00:07]} c6 $1 {[%emt 0:00:02]} 19. Rd1 {[%emt 0:00:45]} Rfe8 {[%emt 0:01:02]} 20. Bf3 {[%emt 0:00:24]} Kf8 {[%emt 0:00:14]} 21. Na4 {[%emt 0:09:54]} Ke7 {[%emt 0:01:23]} 22. Nc5 {[%emt 0:00:03]} Kd6 {[%emt 0:00:05]} 23. Rc1 {[%emt 0:04:49]} (23. b4 $11) 23... Rb8 {[%emt 0:04:22]} 24. h4 {[%emt 0:14:02]} h6 {[%emt 0:01:00]} 25. Nd3 {[%emt 0:01:55]} Ree8 {[%emt 0:00:01]} 26. h5 {[%emt 0:07:00]} g5 {[%emt 0:00:49]} 27. Bg4 {[%emt 0:02:30]} a5 {[%emt 0:00:35]} 28. Nc5 {[%emt 0:01:59]} Re7 {[%emt 0:08:17]} 29. a4 {[%emt 0:13:41] [#]} (29. Bf5 $11 {is more appropriate.}) 29... d4 {[%emt 0:00:02]} (29... Rb6 $1 $17) 30. Bf5 {[%emt 0:06:35]} Kd5 $2 {[%emt 0:23:29]} ({Black should play} 30... Rb6 $11) 31. Bxd7 {[%emt 0:06:17]} (31. Nxd7 $18 Rxb3 32. Nf6+ Ke5 33. Ng8) 31... d3 {[%emt 0:04:11] [#]} 32. Bxc6+ $1 {[%emt 0:02:11]} Kxc6 {[%emt 0:10:37]} 33. Na6+ {[%emt 0:00:07]} Kb7 {[%emt 0:00:05]} 34. Nxb8 {[%emt 0:00:05]} Kxb8 {[%emt 0:00:02]} 35. Rd1 {[%emt 0:00:24]} Rd7 {[%emt 0:00:01]} 36. f3 {[%emt 0:05:20]} Kc7 {[%emt 0:04:09]} 37. Kf2 {[%emt 0:00:07]} Kb6 {[%emt 0:00:14]} 38. Ke3 {[%emt 0:00:03]} Kc5 {[%emt 0:00:01]} 39. Rxd3 {[%emt 0:01:09]} Re7+ {[%emt 0:00:02]} 40. Kd2 {[%emt 0:02:55]} f5 {[%emt 0:08:33]} 41. Rd8 {[%emt 0:01:45]} f4 {[%emt 0:05:01]} 42. gxf4 {[%emt 0:00:25]} gxf4 {[%emt 0:00:15]} 43. Rf8 {[%emt 0:02:14]} (43. Ra8 $18 {and White stays clearly on top.}) 43... Re5 {[%emt 0:01:06]} 44. Rxf4 {[%emt 0:00:51]} Rxh5 {[%emt 0:00:06]} 45. Kc3 {[%emt 0:00:09]} Re5 $2 {[%emt 0:02:36] [#]} (45... Rd5 46. Rf6 Rd6 47. Rf5+ Rd5) 46. Rc4+ $2 {[%emt 0:01:48]} (46. Rf6 $1 $18 {is the precise move to win.}) 46... Kd5 {[%emt 0:00:16]} 47. Kd3 {[%emt 0:00:31]} h5 {[%emt 0:01:23]} 48. Rc8 {[%emt 0:00:24]} Ke6 {[%emt 0:06:14]} 49. f4 {[%emt 0:01:16]} Rd5+ {[%emt 0:01:25]} 50. Ke4 {[%emt 0:00:26]} Rd1 {[%emt 0:00:03]} 51. Rc6+ {[%emt 0:00:35]} Kf7 {[%emt 0:02:19] [#]} 52. Rc5 {[%emt 0:00:17]} ({Only move:} 52. Rh6 $1 $18 {[%cal Rh6h5]} Rh1 53. Kf5) 52... h4 {[%emt 0:05:08]} 53. Rxa5 {[%emt 0:02:11]} Rb1 {[%emt 0:00:02]} 54. Rf5+ {[%emt 0:08:07]} Kg6 {[%emt 0:01:33]} 55. Rg5+ {[%emt 0:00:16]} Kf6 {[%emt 0:00:01]} 56. Rh5 {[%emt 0:07:39]} Rxb3 {[%emt 0:00:25]} 57. a5 {[%emt 0:00:08]} Ra3 {[%emt 0:01:45]} 58. Rb5 {[%emt 0:01:46]} h3 {[%emt 0:01:26]} 59. Rb6+ {[%emt 0:01:16]} Kg7 {[%emt 0:00:01]} 60. Rb7+ {[%emt 0:00:57]} Kf6 {[%emt 0:02:58]} 61. Rh7 {[%emt 0:00:16]} Kg6 {[%emt 0:01:43]} 62. Rh8 {[%emt 0:00:40]} Ra4+ {[%emt 0:01:09]} 63. Kf3 $11 {[%emt 0:00:13]} Rxa5 {[%emt 0:00:58]} 64. Kg4 {[%emt 0:00:17]} Ra3 {[%emt 0:01:06]} 65. f5+ {[%emt 0:00:13]} Kf6 {[%emt 0:03:15]} 66. Rh6+ {[%emt 0:00:18]} Ke5 {[%emt 0:00:01]} 67. Re6+ {[%emt 0:00:29]} Kd5 {[%emt 0:00:01]} 68. Re2 {[%emt 0:00:32]} Ra4+ {[%emt 0:02:14]} 69. Kg5 {[%emt 0:00:13]} Re4 {[%emt 0:00:21]} 70. Ra2 {[%emt 0:01:31]} Re1 {[%emt 0:01:45]} 71. Kf6 {[%emt 0:00:33]} Ke4 {[%emt 0:00:46]} 72. Rh2 {[%emt 0:00:53]} Re3 {[%emt 0:00:33]} 73. Kg6 {[%emt 0:00:56]} Rg3+ {[%emt 0:01:13]} 74. Kf6 {[%emt 0:00:14]} Kf4 {[%emt 0:00:15]} 75. Rf2+ {[%emt 0:00:26]} Kg4 {[%emt 0:00:06]} 76. Rh2 {[%emt 0:00:51]} Rg2 {[%emt 0:01:02]} 77. Rh1 {[%emt 0:00:16]} h2 {[%emt 0:00:14]} 78. Ke6 {[%emt 0:00:17]} Re2+ {[%emt 0:00:37]} 79. Kf6 {[%emt 0:00:01]} Kf4 {[%emt 0:01:07]} 80. Kg6 {[%emt 0:00:18]} Rg2+ {[%emt 0:00:10]} 81. Kf6 {[%emt 0:00:11]} Rb2 {[%emt 0:00:56]} 82. Rf1+ {[%emt 0:00:10]} Kg3 {[%emt 0:00:09]} 83. Rh1 {[%emt 0:00:07]} Kg2 {[%emt 0:00:33]} 84. Rxh2+ {[%emt 0:00:11]} Kxh2 {[%emt 0:00:02]} 85. Kg7 {[%emt 0:00:14]} Rg2+ {[%emt 0:00:08]} 86. Kh6 {[%emt 0:00:20]} 1/2-1/2

[Event "Asian Amateur-ch Open 2022"]
[Site "Muscat"]
[Date "2022.10.03"]
[Round "6.5"]
[White "Dadabaev, Zhanybek"]
[Black "Humaidan Mohamed, Alzaabi"]
[Result "1-0"]
[ECO "B07"]
[WhiteElo "1902"]
[BlackElo "1393"]
[Annotator "TA"]
[PlyCount "37"]
[EventDate "2022.09.29"]
[EventType "swiss"]
[SourceTitle "playchess.com"]
[Source "ChessBase"]
[SourceQuality "1"]
[TimeControl "5400+30"]

{[%evp 9,37,39,72,62,96,104,181,187,179,171,229,216,227,218,299,206,215,222,215,210,184,193,199,191,226,222,435,435,29994,29995]} 1. d4 {[%emt 0:04:40]} Nf6 {[%emt 0:00:09]} 2. Bf4 {[%emt 0:00:25]} g6 {[%emt 0:00:13]} 3. Nc3 {[%emt 0:02:43]} d6 {[%emt 0:02:08]} 4. e4 {[%emt 0:00:41]} Bg7 {[%emt 0:00:18]} 5. Qd2 {[%emt 0:00:41]} Nbd7 {[%emt 0:06:23]} 6. O-O-O {[%emt 0:00:43] White is more active. B07: Pirc Defence: Miscellaneous Systems.} Nh5 {[%emt 0:00:42]} 7. Bh6 {[%emt 0:02:26]} O-O {[%emt 0:06:10]} (7... c6 $16 {was called for.}) 8. g4 {[%emt 0:00:50] White is clearly better.} Nhf6 {[%emt 0:00:08]} 9. f3 {[%emt 0:01:00][%cal Oe4e5] [#]} c5 $146 {[%emt 0:02:16] [#]} (9... Bxh6 $142 10. Qxh6 e5) ({Predecessor:} 9... e5 10. d5 Ne8 11. h4 f6 12. Be3 a6 13. h5 g5 14. h6 Bh8 15. Rh5 Rf7 {1-0 (31) Ocelak,J (2182)-Osiecki,S (2082) Chess.com INT 2022}) 10. dxc5 $1 $18 {[%emt 0:00:51]} Nxc5 {[%emt 0:00:11]} 11. h4 {[%emt 0:00:25][%cal Bh2h4,Bh4h5][%mdl 32]} Qb6 {[%emt 0:02:04][%cal Of6e4]} 12. h5 {[%emt 0:04:29]} Nfxe4 {[%emt 0:01:31]} 13. fxe4 {[%emt 0:03:15]} Nxe4 {[%emt 0:00:25] [#]} 14. Qf4 {[%emt 0:15:26] aiming for Bxg7.} Nxc3 {[%emt 0:27:33]} 15. Bxg7 {[%emt 0:01:58] The board is on fire.} Nxa2+ {[%emt 0:01:23]} 16. Kb1 {[%emt 0:00:36]} Kxg7 {[%emt 0:00:26]} 17. Kxa2 {[%emt 0:00:13]} Qc6 $2 {[%emt 0:03:10]} (17... Qa5+ 18. Kb1 Be6) 18. Rh2 {[%emt 0:02:39] Black must now prevent hxg6.} e5 {[%emt 0:00:49]} (18... Kh8 $18 19. Qh6 Rg8 20. hxg6 Rg7 21. gxf7 (21. gxh7 Bxg4 22. Ne2 Qxc2 $11) 21... Bxg4) 19. h6+ {[%emt 0:00:19] Black did not feel at home in the position after the opening.  Weighted Error Value: White=0.11 (very precise) /Black=1.06} 1-0

[Event "Asian Amateur-ch Open 2022"]
[Site "Muscat"]
[Date "2022.10.03"]
[Round "6.6"]
[White "Madhusoodanan, K.R."]
[Black "Bagheri, Majid"]
[Result "1-0"]
[ECO "B07"]
[WhiteElo "1663"]
[BlackElo "1870"]
[Annotator "NA RC COMBH"]
[PlyCount "107"]
[EventDate "2022.09.29"]
[EventType "swiss"]
[SourceTitle "playchess.com"]
[Source "ChessBase"]
[SourceQuality "1"]
[TimeControl "5400+30"]

{[%evp 8,106,10,32767,24,-7,32767,-1,53,45,52,50,93,79,108,110,107,32767,104,32767,115,32767,32767,32767,184,32767,223,195,148,161,181,172,32767,32767,375,388,464,32767,1066,1189,1260,1350,32767,709,658,32767,631,32767,32767,670,794,32767,714,32767,608,564,557,32767,498,500,32767,32767,32767,32767,557,32767,32767,32767,32767,685,32767,32767,705,32767,32767,787,32767,32767,32767,587,32767,32767,32767,32767,1132,1139,32767,32767,1271,1286,32767,32767,32767,1381,32767,32767,32767,32767,32767,32767,2111]} 1. Nf3 {[%emt 0:01:24]} g6 {[%emt 0:00:11]} 2. e4 {[%emt 0:02:26]} Bg7 {[%emt 0:00:58]} 3. Bc4 {[%emt 0:00:17]} d6 {[%emt 0:04:18]} 4. O-O {[%emt 0:00:36]} Nf6 {[%emt 0:00:20]} 5. Nc3 {[%emt 0:01:39]} O-O {[%emt 0:00:36]} 6. h3 {[%emt 0:00:18]} c6 {[%emt 0:01:04]} 7. Bb3 {[%emt 0:03:53]} d5 {[%emt 0:05:10]} (7... a5 $11) 8. e5 {[%emt 0:02:15]} Nfd7 {[%emt 0:06:36]} 9. d4 {[%emt 0:02:25]} h6 {[%emt 0:05:53]} (9... Na6 $14) 10. Re1 {[%emt 0:01:41]} e6 {[%emt 0:00:10] [#]} 11. Ne2 $1 {[%emt 0:01:25]} c5 {[%emt 0:10:18]} 12. c3 {[%emt 0:00:34]} Nc6 {[%emt 0:00:11]} 13. Bc2 {[%emt 0:01:07]} Re8 {[%emt 0:04:53]} 14. Bf4 {[%emt 0:05:38]} cxd4 {[%emt 0:05:43]} 15. cxd4 {[%emt 0:01:17]} Nf8 {[%emt 0:02:30]} (15... Qe7 $16 {might work better.}) 16. Qd2 {[%emt 0:02:27]} Kh7 {[%emt 0:04:50]} (16... Qa5 $142 17. Bxh6 Qxd2 18. Bxd2 Nd7) 17. Rac1 {[%emt 0:00:58]} Qa5 {[%emt 0:00:49]} 18. Nc3 {[%emt 0:00:55]} Bd7 {[%emt 0:00:32]} 19. h4 {[%emt 0:01:28]} Rec8 {[%emt 0:03:44]} 20. h5 {[%emt 0:00:40]} Ne7 {[%emt 0:02:08]} (20... Qb4 {keeps fighting.} 21. g3 Na5) 21. g4 {[%emt 0:01:38]} Be8 {[%emt 0:11:03]} 22. Kg2 {[%emt 0:01:09]} f5 {[%emt 0:29:33]} 23. exf6 {[%emt 0:03:00]} Bxf6 {[%emt 0:00:00]} 24. Bxh6 {[%emt 0:00:37]} Bf7 {[%emt 0:00:00]} 25. Rh1 {[%emt 0:02:12]} (25. Qf4 $142 Nd7 26. hxg6+ Bxg6 27. Rxe6) 25... Kg8 {[%emt 0:00:00]} 26. Ne4 {[%emt 0:01:39]} dxe4 {[%emt 0:00:00]} 27. Qxa5 {[%emt 0:00:16]} exf3+ {[%emt 0:00:00]} 28. Kxf3 {[%emt 1:00:36]} Rd8 {[%emt 0:03:00]} 29. Be3 {[%emt 0:00:00]} Rd5 {[%emt 0:00:00]} 30. Qd2 {[%emt 0:00:00]} gxh5 {[%emt 0:00:00]} 31. Rcg1 {[%emt 0:00:00]} h4 {[%emt 0:00:00]} 32. g5 {[%emt 0:00:00]} Bg7 {[%emt 0:00:00]} 33. Rxh4 {[%emt 0:00:00]} Nfg6 {[%emt 0:00:00]} 34. Re4 {[%emt 0:00:00]} Rf8 {[%emt 0:00:00]} 35. Ke2 {[%emt 0:00:00]} Nf5 {[%emt 0:00:00]} 36. Bb3 {[%emt 0:00:00]} Rd6 {[%emt 0:00:00]} 37. Rc1 {[%emt 0:00:00]} Ngh4 {[%emt 0:00:00]} 38. g6 {[%emt 0:00:00]} Bxg6 {[%emt 0:00:00]} 39. Bxe6+ {[%emt 0:00:00]} Rxe6 {[%emt 0:00:36]} 40. Rxe6 {[%emt 0:00:00]} Bh5+ {[%emt 0:00:11]} 41. Kd3 {[%emt 0:00:00]} Bf7 {[%emt 0:00:25]} 42. Re4 {[%emt 0:00:00]} Bg6 {[%emt 0:00:55]} 43. Qb4 {[%emt 0:00:00]} Rf7 {[%emt 0:02:47]} 44. Rc8+ {[%emt 0:00:00]} Kh7 {[%emt 0:00:24]} 45. Kc3 {[%emt 0:00:00]} a5 {[%emt 0:00:31]} 46. Qb6 {[%emt 0:00:00]} Nf3 {[%emt 0:00:33]} 47. Rg4 {[%emt 0:00:00]} Rf6 {[%emt 0:00:47]} 48. Qd8 {[%emt 0:00:00]} Rf8 {[%emt 0:01:36]} 49. Qxf8 {[%emt 0:00:00]} Bxf8 {[%emt 0:00:14]} 50. Rxf8 {[%emt 0:00:00]} b5 {[%emt 0:01:00]} 51. b4 {[%emt 0:00:00]} a4 {[%emt 0:00:44]} 52. Rxf5 {[%emt 0:00:00]} Bxf5 {[%emt 0:00:25]} 53. Rf4 {[%emt 0:00:00]} Be6 $18 {[%emt 0:00:40]} 54. Rxf3 {[%emt 0:00:00]} 1-0

[Event "Asian Amateur-ch Open 2022"]
[Site "Muscat"]
[Date "2022.10.03"]
[Round "6.7"]
[White "Shreyas Seshadri Nallore"]
[Black "Shelke Omkar"]
[Result "1-0"]
[ECO "B40"]
[WhiteElo "1791"]
[BlackElo "1460"]
[Annotator "NA RC COMBH"]
[PlyCount "108"]
[EventDate "2022.09.29"]
[EventType "swiss"]
[SourceTitle "playchess.com"]
[Source "ChessBase"]
[SourceQuality "1"]
[TimeControl "5400+30"]

1. e4 {[%emt 0:00:05]} c5 {[%emt 0:00:08]} 2. Nf3 {[%emt 0:00:09]} e6 {[%emt 0:00:18]} 3. c3 {[%emt 0:00:09]} d5 {[%emt 0:01:07]} 4. exd5 {[%emt 0:00:10]} Qxd5 {[%emt 0:00:31]} 5. Na3 {[%emt 0:00:13]} Nc6 {[%emt 0:01:15]} 6. Bc4 {[%emt 0:03:15]} Qd6 {[%emt 0:02:33]} 7. O-O {[%emt 0:03:13]} Nf6 {[%emt 0:01:21]} 8. d4 {[%emt 0:02:15]} a6 {[%emt 0:03:14]} 9. dxc5 {[%emt 0:05:33]} Qxd1 {[%emt 0:01:18]} 10. Rxd1 {[%emt 0:00:10]} Bxc5 {[%emt 0:00:05]} 11. Nc2 {[%emt 0:03:55]} b6 {[%emt 0:04:03]} 12. Be3 {[%emt 0:04:50]} Bxe3 {[%emt 0:01:40]} 13. Nxe3 {[%emt 0:01:41]} Bb7 {[%emt 0:00:41]} 14. Be2 {[%emt 0:00:44]} Ke7 {[%emt 0:07:37]} 15. Nd2 {[%emt 0:03:09]} Rad8 {[%emt 0:03:24]} 16. Bf3 {[%emt 0:05:35]} b5 {[%emt 0:05:19]} 17. a4 {[%emt 0:06:41]} Rd6 {[%emt 0:05:09]} 18. axb5 {[%emt 0:02:57]} axb5 {[%emt 0:00:14]} 19. Nb3 {[%emt 0:00:36]} Rxd1+ {[%emt 0:00:49]} 20. Rxd1 {[%emt 0:03:58]} Rd8 {[%emt 0:05:02]} 21. Re1 {[%emt 0:02:34]} Kd6 {[%emt 0:03:14]} 22. c4 {[%emt 0:02:35]} bxc4 {[%emt 0:03:17]} 23. Nxc4+ {[%emt 0:01:42]} Kc7 {[%emt 0:04:02]} 24. Rc1 {[%emt 0:06:58]} Kb8 {[%emt 0:08:41]} 25. Bxc6 {[%emt 0:03:39]} Bxc6 {[%emt 0:00:02]} 26. Nba5 {[%emt 0:00:32]} Be8 {[%emt 0:01:28]} 27. h3 {[%emt 0:02:38]} Nd5 {[%emt 0:06:58]} 28. Rd1 {[%emt 0:04:26]} Rc8 {[%emt 0:03:25]} 29. Rd3 {[%emt 0:03:33]} Kc7 {[%emt 0:01:38]} 30. Rg3 {[%emt 0:03:08]} g6 {[%emt 0:00:49]} 31. Rb3 {[%emt 0:01:34]} Rb8 {[%emt 0:00:35]} 32. Rxb8 {[%emt 0:00:59]} Kxb8 {[%emt 0:00:02]} 33. Nd6 {[%emt 0:00:37]} Nc7 {[%emt 0:00:05]} 34. Nac4 {[%emt 0:01:33]} f6 {[%emt 0:00:19]} 35. Ne4 {[%emt 0:01:39]} Nd5 {[%emt 0:00:41]} 36. Ne3 {[%emt 0:01:04]} Bc6 {[%emt 0:03:32]} 37. Nxd5 {[%emt 0:01:53]} exd5 {[%emt 0:00:01]} 38. Nxf6 {[%emt 0:00:29]} d4 {[%emt 0:00:03]} 39. f3 {[%emt 0:01:05]} h6 {[%emt 0:02:08]} 40. Ng4 {[%emt 0:01:31]} h5 {[%emt 0:00:32]} 41. Ne5 {[%emt 0:00:06]} Be8 {[%emt 0:00:11]} 42. f4 {[%emt 0:00:12]} Kc7 {[%emt 0:00:31]} 43. Nf3 {[%emt 0:00:05]} d3 {[%emt 0:00:26]} 44. Kf2 {[%emt 0:00:05]} Kd6 {[%emt 0:00:20]} 45. Ke3 {[%emt 0:00:13]} Bb5 {[%emt 0:00:36]} 46. Ne5 {[%emt 0:00:15]} d2 {[%emt 0:00:21]} 47. Kxd2 {[%emt 0:00:13]} Bf1 {[%emt 0:00:13]} 48. g3 {[%emt 0:00:08]} Bxh3 {[%emt 0:01:51]} 49. Nxg6 {[%emt 0:00:19]} Bd7 {[%emt 0:01:21]} 50. Ke3 {[%emt 0:00:15]} Bc6 {[%emt 0:00:20]} 51. f5 {[%emt 0:00:20]} Be8 {[%emt 0:00:32]} 52. Kf4 {[%emt 0:00:05]} Kd5 {[%emt 0:00:00]} 53. Ne5 {[%emt 0:00:19]} Kd4 {[%emt 0:00:20]} 54. f6 {[%emt 0:00:05]} Kd5 {[%emt 0:23:08]} 1-0

[Event "Asian Amateur-ch Open 2022"]
[Site "Muscat"]
[Date "2022.10.03"]
[Round "6.8"]
[White "Hamdan Edrees, Alhamed"]
[Black "Sharma Pankaj"]
[Result "1-0"]
[ECO "C00"]
[WhiteElo "1467"]
[BlackElo "1764"]
[Annotator "NA RC COMBH"]
[PlyCount "69"]
[EventDate "2022.09.29"]
[EventType "swiss"]
[SourceTitle "playchess.com"]
[Source "ChessBase"]
[SourceQuality "1"]
[TimeControl "5400+30"]

1. e4 {[%emt 0:00:02]} e6 {[%emt 0:00:09]} 2. d3 {[%emt 0:00:42]} d5 {[%emt 0:00:02]} 3. Nd2 {[%emt 0:00:12]} Nf6 {[%emt 0:00:02]} 4. Ngf3 {[%emt 0:00:11]} c5 {[%emt 0:00:03]} 5. g3 {[%emt 0:01:01]} b6 {[%emt 0:00:03]} 6. Bg2 {[%emt 0:00:11]} Bb7 {[%emt 0:00:02]} 7. e5 {[%emt 0:00:12]} Nfd7 {[%emt 0:00:03]} 8. O-O {[%emt 0:00:14]} Nc6 {[%emt 0:00:02]} 9. Re1 {[%emt 0:00:09]} Be7 {[%emt 0:00:08]} 10. Nf1 {[%emt 0:00:19]} g5 {[%emt 0:00:57]} 11. h3 {[%emt 0:00:34]} h5 {[%emt 0:01:20]} 12. Ne3 {[%emt 0:01:15]} Qc7 {[%emt 0:03:17]} 13. Nxd5 {[%emt 0:17:46]} exd5 {[%emt 0:01:29]} 14. Nxg5 {[%emt 0:00:43]} Ncxe5 {[%emt 0:14:12]} 15. Bf4 {[%emt 0:01:39]} Bxg5 {[%emt 0:01:17]} 16. Bxg5 {[%emt 0:00:08]} f6 {[%emt 0:00:35]} 17. Bh4 {[%emt 0:03:17]} O-O-O {[%emt 0:02:43]} 18. d4 {[%emt 0:00:19]} Ng6 {[%emt 0:04:02]} 19. dxc5 {[%emt 0:00:11]} Qxc5 {[%emt 0:00:51]} 20. b4 {[%emt 0:03:10]} Qd6 {[%emt 0:05:16]} 21. c4 {[%emt 0:00:35]} Nxh4 {[%emt 0:00:20]} 22. gxh4 {[%emt 0:00:55]} Rhg8 {[%emt 0:01:00]} 23. c5 {[%emt 0:00:42]} Qf4 {[%emt 0:00:53]} 24. c6 {[%emt 0:02:50]} Bxc6 {[%emt 0:12:12]} 25. Rc1 {[%emt 0:00:13]} Kb7 {[%emt 0:03:50]} 26. b5 {[%emt 0:00:20]} Bxb5 {[%emt 0:21:25]} 27. Qxd5+ {[%emt 0:00:24]} Ka6 {[%emt 0:00:02]} 28. a4 {[%emt 0:00:20]} Rxg2+ {[%emt 0:13:05]} 29. Kxg2 {[%emt 0:00:16]} Be2 {[%emt 0:03:45]} 30. Rc3 {[%emt 0:02:22]} Re8 {[%emt 0:04:37]} 31. Rxe2 {[%emt 0:00:38]} Re5 {[%emt 0:07:41]} 32. Qxd7 {[%emt 0:00:28]} Rf5 {[%emt 0:00:35]} 33. Qd3+ {[%emt 0:01:03]} Ka5 {[%emt 0:00:14]} 34. Rb3 {[%emt 0:00:37]} Rc5 {[%emt 0:00:45]} 35. Rb5+ {[%emt 0:00:11]} 1-0